bitfinex/quotes_BTCUSD_20210101
["timestamp","ask_amount","ask_price","bid_price","bid_amount"]
[1609481383036,4.24898388,29253.0,29252.0,0.15274787]
[1609481383837,4.24898388,29253.0,29252.0,0.15184987]
[1609481384759,4.21551576,29253.0,29252.0,0.15184987]
[1609481385259,4.24898388,29253.0,29252.0,0.15184987]
[1609481385660,4.21551576,29253.0,29252.0,0.15184987]
[1609481389885,5.11551576,29253.0,29252.0,0.15184987]
[1609481390088,5.14898388,29253.0,29252.0,0.15184987]
[1609481390292,0.32080302,29252.0,29244.0,0.2]
[1609481390500,0.562227,29249.0,29244.0,0.2]
[1609481390803,4.09762701,29245.0,29244.0,0.2]
[1609481390998,6.06260522,29245.0,29244.0,0.2]
[1609481391190,7.09607334,29245.0,29244.0,0.2]
[1609481391395,7.56343574,29245.0,29244.0,0.2]
[1609481391792,4.38457194,29244.0,29235.0,0.08105403]
[1609481392034,0.362227,29239.0,29232.0,0.0002]
[1609481392234,0.362227,29235.0,29232.0,0.0002]
[1609481392429,2.512227,29233.0,29232.0,0.0002]
[1609481392625,2.917227,29233.0,29232.0,0.0002]
[1609481394432,3.23803002,29233.0,29232.0,0.0002]
[1609481396222,3.56803002,29233.0,29232.0,0.0002]
[1609481401049,1.41803002,29233.0,29232.0,0.06562806]
[1609481401247,1.41803002,29233.0,29232.0,0.06522805]
[1609481401454,0.767227,29233.0,29232.0,0.06522805]
[1609481402451,0.362227,29233.0,29232.0,0.06522805]
[1609481402652,0.2923,29237.0,29232.0,0.12546605]
[1609481402866,0.32080302,29245.0,29236.0,0.05062806]
[1609481403061,0.362227,29244.0,29240.0,0.05062806]
[1609481403707,1.1742,29246.0,29241.0,0.11082906]
[1609481403911,1.1742,29246.0,29243.0,0.01459999]
[1609481403912,0.362227,29245.0,29243.0,0.01459999]
[1609481404108,0.362227,29245.0,29244.0,1.05062806]
[1609481404820,1.6545,29254.0,29244.0,2.760189]
[1609481405131,0.362227,29253.0,29249.0,0.5122]
[1609481405319,0.362227,29253.0,29250.0,0.01459999]
[1609481405624,0.362227,29253.0,29250.0,0.24236999]
[1609481406023,0.3601808,29253.0,29250.0,0.24236999]
[1609481406220,0.3601808,29253.0,29251.0,1.0]
[1609481406525,0.3601808,29253.0,29250.0,0.01459999]
[1609481408166,0.3601808,29253.0,29249.0,0.5122]
[1609481408465,0.3601808,29253.0,29250.0,0.01459999]
[1609481408966,0.3601808,29253.0,29250.0,1.0]
[1609481409168,0.3601808,29253.0,29250.0,1.01459999]
[1609481409367,0.3601808,29253.0,29250.0,1.0]
[1609481411370,2.162227,29251.0,29250.0,1.0]
[1609481411674,0.362228,29250.0,29248.0,0.6829]
[1609481411874,0.362228,29250.0,29243.0,1.0]
[1609481412077,0.362228,29248.0,29243.0,1.0]
[1609481412474,0.362228,29247.0,29243.0,1.0]
[1609481413590,0.362228,29247.0,29242.0,0.6829]
[1609481414689,0.362228,29247.0,29243.0,1.0]
[1609481416594,0.362228,29247.0,29242.0,0.6829]
[1609481416997,0.362228,29247.0,29243.0,0.01459999]
[1609481417197,0.362228,29247.0,29242.0,0.6829]
[1609481417596,0.362228,29247.0,29242.0,0.69749999]
[1609481418438,0.362228,29247.0,29242.0,0.6829]
[1609481419504,0.362228,29247.0,29242.0,0.66492401]
[1609481420696,0.362228,29247.0,29243.0,0.01459999]
[1609481424726,0.362228,29247.0,29242.0,0.66492401]
[1609481424928,0.362228,29247.0,29243.0,1.0]
[1609481426737,0.362228,29245.0,29244.0,0.01248231]
[1609481428355,0.362228,29245.0,29244.0,0.02032912]
[1609481434480,1.262228,29245.0,29244.0,0.02032912]
[1609481434683,1.447228,29245.0,29244.0,0.02032912]
[1609481435988,0.547228,29245.0,29244.0,0.02032912]
[1609481436183,0.362228,29245.0,29244.0,0.02032912]
[1609481442010,0.44762801,29245.0,29244.0,0.02032912]
[1609481442411,0.44762801,29245.0,29244.0,0.12359096]
[1609481443015,2.4283623,29245.0,29244.0,0.12359096]
[1609481443216,2.8183623,29245.0,29244.0,0.02032912]
[1609481443425,5.0683623,29245.0,29244.0,0.02032912]
[1609481444020,5.31223939,29245.0,29244.0,0.02032912]
[1609481444222,5.27877127,29245.0,29244.0,0.12201116]
[1609481444854,2.82460774,29245.0,29244.0,0.12201116]
[1609481445052,3.02460774,29245.0,29244.0,0.02032912]
[1609481445350,4.60807586,29245.0,29244.0,0.02032912]
[1609481445555,4.60599401,29245.0,29244.0,0.02032912]
[1609481445755,3.5777124,29245.0,29244.0,0.02032912]
[1609481445952,3.57354881,29245.0,29244.0,0.02032912]
[1609481446151,3.89435183,29245.0,29244.0,0.02032912]
[1609481446352,4.24435183,29245.0,29244.0,0.1228421]
[1609481446555,2.74397989,29245.0,29244.0,0.1228421]
[1609481446751,2.62317687,29245.0,29244.0,0.1228421]
[1609481446953,3.65356118,29245.0,29244.0,0.1228421]
[1609481447155,4.570465,29245.0,29244.0,0.1228421]
[1609481447356,6.470465,29245.0,29244.0,0.1228421]
[1609481447566,6.30393312,29245.0,29244.0,0.02032912]
[1609481447761,6.50393312,29245.0,29244.0,0.02032912]
[1609481448582,6.50393312,29245.0,29244.0,0.12250357]
[1609481448788,6.50601237,29245.0,29244.0,0.12250357]
[1609481448982,6.77337275,29245.0,29244.0,0.12250357]
[1609481449183,6.77337275,29245.0,29244.0,0.02032912]
[1609481450121,6.77129235,29245.0,29244.0,0.12165211]
[1609481451221,6.77129235,29245.0,29244.0,0.02032912]
[1609481451818,7.40989235,29245.0,29244.0,0.02032912]
[1609481452079,7.40989235,29245.0,29244.0,0.12186754]
[1609481452278,6.77129235,29245.0,29244.0,0.12186754]
[1609481452479,4.87129235,29245.0,29244.0,0.12186754]
[1609481453279,6.12129235,29245.0,29244.0,0.12186754]
[1609481453483,4.87129235,29245.0,29244.0,0.02032912]
[1609481454185,5.91921276,29245.0,29244.0,0.02032912]
[1609481454878,4.96884082,29245.0,29244.0,0.02032912]
[1609481455279,5.81884082,29245.0,29244.0,0.02032912]
[1609481457411,4.96884082,29245.0,29244.0,0.02032912]
[1609481458111,5.81884082,29245.0,29244.0,0.02032912]
[1609481461013,4.96884082,29245.0,29244.0,0.02032912]
[1609481463160,3.91884082,29245.0,29244.0,0.02032912]
[1609481463561,1.30498839,29245.0,29244.0,0.02032912]
[1609481464073,0.752228,29245.0,29244.0,0.02032912]
[1609481464375,0.362228,29245.0,29244.0,0.02032912]
[1609481466569,0.362228,29245.0,29244.0,0.12032912]
[1609481467902,0.362228,29245.0,29244.0,0.02032912]
[1609481468103,1.862228,29245.0,29244.0,0.02032912]
[1609481468295,2.137228,29245.0,29244.0,0.02032912]
[1609481469698,0.637228,29245.0,29244.0,0.02032912]
[1609481470002,0.362228,29245.0,29244.0,0.02032912]
[1609481476477,0.362228,29245.0,29244.0,0.12032912]
[1609481477379,0.362228,29245.0,29244.0,0.02032912]
[1609481480397,1.162228,29245.0,29244.0,0.01532912]
[1609481480595,0.577228,29245.0,29244.0,0.01532912]
[1609481480796,0.362228,29245.0,29244.0,0.01532912]
[1609481482948,0.962228,29245.0,29244.0,0.01532912]
[1609481483148,1.147228,29245.0,29244.0,0.01532912]
[1609481483445,0.547228,29245.0,29244.0,0.01532912]
[1609481484544,0.362228,29245.0,29244.0,0.01532912]
[1609481485905,0.362228,29245.0,29244.0,0.02032901]
[1609481486911,1.112228,29245.0,29244.0,0.02032901]
[1609481487115,1.36262801,29245.0,29244.0,0.02032901]
[1609481487918,4.26262801,29245.0,29244.0,0.02032901]
[1609481488115,5.09300134,29245.0,29244.0,0.02032901]
[1609481488417,5.76800134,29245.0,29244.0,0.02032901]
[1609481489010,5.96800134,29245.0,29244.0,0.02032901]
[1609481489832,5.76800134,29245.0,29244.0,0.02032901]
[1609481490032,6.7518414,29245.0,29244.0,0.02032901]
[1609481490628,7.4156414,29245.0,29244.0,0.02032901]
[1609481491430,6.46526946,29245.0,29244.0,0.02032901]
[1609481494914,6.78607248,29245.0,29244.0,0.02032901]
[1609481498961,6.7964851,29245.0,29244.0,0.02032901]
[1609481499158,6.99232005,29245.0,29244.0,0.02032901]
[1609481500161,3.0284786,29245.0,29244.0,0.02032901]
[1609481500357,2.70767558,29245.0,29244.0,0.02032901]
[1609481500559,2.7118394,29245.0,29244.0,0.02032901]
[1609481500759,2.70559183,29245.0,29244.0,0.02032901]
[1609481501759,1.95430919,29245.0,29244.0,0.02032901]
[1609481502055,1.27930919,29245.0,29244.0,0.02032901]
[1609481502655,1.97930919,29245.0,29244.0,0.02032901]
[1609481503884,1.27930919,29245.0,29244.0,0.02032901]
[1609481504083,1.57930919,29245.0,29244.0,0.02032901]
[1609481504983,1.577228,29245.0,29244.0,0.02032901]
[1609481505682,2.477228,29245.0,29244.0,0.02032901]
[1609481505986,1.577228,29245.0,29244.0,0.02032901]
[1609481506387,1.577228,29245.0,29244.0,0.02007301]
[1609481507288,1.89803102,29245.0,29244.0,0.02007301]
[1609481507691,2.727228,29245.0,29244.0,0.02007301]
[1609481509322,3.04803102,29245.0,29244.0,0.02007301]
[1609481509873,2.727228,29245.0,29244.0,0.02007301]
[1609481511173,1.577228,29245.0,29244.0,0.02007301]
[1609481511571,2.727228,29245.0,29244.0,0.02007301]
[1609481513416,1.577228,29245.0,29244.0,0.02007301]
[1609481514516,2.477228,29245.0,29244.0,0.02007301]
[1609481514817,2.47930879,29245.0,29244.0,0.02007301]
[1609481515617,1.57930879,29245.0,29244.0,0.02007301]
[1609481516619,2.42930879,29245.0,29244.0,0.02007301]
[1609481517018,1.57930879,29245.0,29244.0,0.02007301]
[1609481518259,2.60968761,29245.0,29244.0,0.02007301]
[1609481518459,4.50968761,29245.0,29244.0,0.02007301]
[1609481518662,4.83049063,29245.0,29244.0,0.02007301]
[1609481519158,4.50968761,29245.0,29244.0,0.02007301]
[1609481519357,4.51385008,29245.0,29244.0,0.02007301]
[1609481519556,2.61385008,29245.0,29244.0,0.02007301]
[1609481520056,2.61176929,29245.0,29244.0,0.02007301]
[1609481520254,2.93257231,29245.0,29244.0,0.02007301]
[1609481520456,3.58257231,29245.0,29244.0,0.02007301]
[1609481520858,3.58881643,29245.0,29244.0,0.02007301]
[1609481521587,2.93881643,29245.0,29244.0,0.02007301]
[1609481521790,2.61385094,29245.0,29244.0,0.02007301]
[1609481523893,1.58347212,29245.0,29244.0,0.02007301]
[1609481524093,0.83347212,29245.0,29244.0,0.02007301]
[1609481525103,0.83763494,29245.0,29244.0,0.02007301]
[1609481525606,0.83139082,29245.0,29244.0,0.02007301]
[1609481527438,0.83347481,29245.0,29244.0,0.02007301]
[1609481528239,0.53347481,29245.0,29244.0,0.02007301]
[1609481528441,0.36847481,29245.0,29244.0,0.02007301]
[1609481531137,0.45387482,29245.0,29244.0,0.02007301]
[1609481533368,1.10387482,29245.0,29244.0,0.02007301]
[1609481533569,1.27387482,29245.0,29244.0,0.02007301]
[1609481533967,1.30734294,29245.0,29244.0,0.02007301]
[1609481534166,0.65734294,29245.0,29244.0,0.02007301]
[1609481535271,3.25734294,29245.0,29244.0,0.02007301]
[1609481535471,3.99434294,29245.0,29244.0,0.02007301]
[1609481536469,3.95462801,29245.0,29244.0,0.02007301]
[1609481537674,1.35462801,29245.0,29244.0,0.02007301]
[1609481537870,0.85462801,29245.0,29244.0,0.02007301]
[1609481538175,0.61762801,29245.0,29244.0,0.02007301]
[1609481539313,1.31762801,29245.0,29244.0,0.02007301]
[1609481539751,0.61762801,29245.0,29244.0,0.02007301]
[1609481540148,0.66249379,29245.0,29244.0,0.02007301]
[1609481542147,1.79596191,29245.0,29244.0,0.02007301]
[1609481542376,2.00596191,29245.0,29244.0,0.02007301]
[1609481542776,1.97249379,29245.0,29244.0,0.02007301]
[1609481543276,2.00596191,29245.0,29244.0,0.02007301]
[1609481543477,1.97249379,29245.0,29244.0,0.02007301]
[1609481544680,2.00596191,29245.0,29244.0,0.02007301]
[1609481546783,1.97249379,29245.0,29244.0,0.02007301]
[1609481547181,2.00596191,29245.0,29244.0,0.02007301]
[1609481547930,0.90596191,29245.0,29244.0,0.02007301]
[1609481548131,1.65596191,29245.0,29244.0,0.02007301]
[1609481548933,1.62249379,29245.0,29244.0,0.02007301]
[1609481549234,1.65596191,29245.0,29244.0,0.02007301]
[1609481551035,1.62249379,29245.0,29244.0,0.02007301]
[1609481552056,2.80596191,29245.0,29244.0,0.02007301]
[1609481552963,1.62249379,29245.0,29244.0,0.02007301]
[1609481553161,2.22249379,29245.0,29244.0,0.01507301]
[1609481553359,2.25596191,29245.0,29244.0,0.01507301]
[1609481554166,2.22249379,29245.0,29244.0,0.01507301]
[1609481555220,2.25596191,29245.0,29244.0,0.01507301]
[1609481555620,1.65596191,29245.0,29244.0,0.01507301]
[1609481555818,1.62249379,29245.0,29244.0,0.01507301]
[1609481556219,1.65596191,29245.0,29244.0,0.01507301]
[1609481556618,0.90596191,29245.0,29244.0,0.01507301]
[1609481557021,1.90596191,29245.0,29244.0,0.01507301]
[1609481557755,1.87249379,29245.0,29244.0,0.01507301]
[1609481558857,0.87249379,29245.0,29244.0,0.01507301]
[1609481559765,0.82762801,29245.0,29244.0,0.01507301]
[1609481559961,2.07762801,29245.0,29244.0,0.01507301]
[1609481561662,2.12199378,29245.0,29244.0,0.01507301]
[1609481562262,0.82762801,29245.0,29244.0,0.01507301]
[1609481563007,1.92199714,29245.0,29244.0,0.01507301]
[1609481567140,0.87199714,29245.0,29244.0,0.01507301]
[1609481567942,1.62199714,29245.0,29244.0,0.01507301]
[1609481568640,0.87199714,29245.0,29244.0,0.01507301]
[1609481568841,1.82199714,29245.0,29244.0,0.01507301]
[1609481569038,0.87199714,29245.0,29244.0,0.01507301]
[1609481570462,0.66199714,29245.0,29244.0,0.01507301]
[1609481570858,1.46199714,29245.0,29244.0,0.01507301]
[1609481571965,2.06199714,29245.0,29244.0,0.02032909]
[1609481572160,2.21699714,29245.0,29244.0,0.02032909]
[1609481572898,1.61699714,29245.0,29244.0,0.02032909]
[1609481574597,0.81699714,29245.0,29244.0,0.02032909]
[1609481575398,0.49199714,29245.0,29244.0,0.02032909]
[1609481575899,1.24199714,29245.0,29244.0,0.02032909]
[1609481576505,0.49199714,29245.0,29244.0,0.02032909]
[1609481576800,1.19199714,29245.0,29244.0,0.02032909]
[1609481577099,0.66699714,29245.0,29244.0,0.02032909]
[1609481577499,0.70046526,29245.0,29244.0,0.02032909]
[1609481577802,1.45046526,29245.0,29244.0,0.02032909]
[1609481578041,1.41699714,29245.0,29244.0,0.02032909]
[1609481578743,2.01699714,29245.0,29244.0,0.02032909]
[1609481579345,0.66699714,29245.0,29244.0,0.02032909]
[1609481580747,2.06699714,29245.0,29244.0,0.02032909]
[1609481580944,2.20699714,29245.0,29244.0,0.02032909]
[1609481581245,2.24046526,29245.0,29244.0,0.02032909]
[1609481581772,2.20699714,29245.0,29244.0,0.02032909]
[1609481586600,0.80699714,29245.0,29244.0,0.02032909]
[1609481586799,0.66699714,29245.0,29244.0,0.02032909]
[1609481587206,0.66199714,29245.0,29244.0,0.02032909]
[1609481587445,0.48699714,29245.0,29244.0,0.02032909]
[1609481592146,0.40159713,29245.0,29244.0,0.02032909]
[1609481593184,0.357228,29245.0,29244.0,0.02032909]
[1609481593683,0.36347956,29245.0,29244.0,0.02032909]
[1609481594983,0.36139508,29245.0,29244.0,0.02032909]
[1609481595579,1.61139508,29245.0,29244.0,0.02032909]
[1609481595777,1.89639508,29245.0,29244.0,0.02032909]
[1609481597021,1.89847793,29245.0,29244.0,0.02032909]
[1609481598313,0.64847793,29245.0,29244.0,0.02032909]
[1609481598513,0.36347793,29245.0,29244.0,0.02032909]
[1609481599315,0.36764428,29245.0,29244.0,0.02032909]
[1609481599519,1.21764428,29245.0,29244.0,0.02032909]
[1609481599716,1.44264428,29245.0,29244.0,0.02032909]
[1609481600433,0.59264428,29245.0,29244.0,0.02032909]
[1609481600635,0.36764428,29245.0,29244.0,0.02032909]
[1609481601040,1.31801622,29245.0,29244.0,0.02032909]
[1609481601247,2.54693179,29245.0,29244.0,0.02032909]
[1609481601446,3.67148488,29245.0,29244.0,0.02032909]
[1609481601637,6.83883688,29245.0,29244.0,0.02032909]
[1609481602045,6.8792106,29245.0,29244.0,0.02032909]
[1609481602683,1.47170842,29244.0,29231.0,0.0002]
[1609481602883,3.19393779,29243.0,29231.0,0.0002]
[1609481603076,1.59251144,29242.0,29231.0,0.0002]
[1609481603381,0.00624999,29239.0,29231.0,0.0002]
[1609481603691,0.20536476,29237.0,29231.0,0.0002]
[1609481603877,0.68724,29236.0,29231.0,0.00804877]
[1609481604184,0.36224,29234.0,29231.0,0.00804877]
[1609481604879,0.32080302,29233.0,29231.0,0.00804877]
[1609481605080,1.86224,29232.0,29231.0,0.00804877]
[1609481605276,2.61804302,29232.0,29231.0,0.00804877]
[1609481605879,0.79724,29232.0,29231.0,0.00804877]
[1609481607378,2.06224,29232.0,29231.0,0.00804877]
[1609481607981,2.06224,29232.0,29231.0,0.00829316]
[1609481609101,0.36224,29232.0,29231.0,0.00829316]
[1609481609499,1.66224,29232.0,29231.0,0.00829316]
[1609481611703,0.36224,29232.0,29231.0,0.00829316]
[1609481611906,0.36224,29232.0,29231.0,0.00329316]
[1609481612504,0.63224,29232.0,29231.0,0.00329316]
[1609481614740,0.62724,29232.0,29231.0,0.00329316]
[1609481614965,0.62724,29232.0,29231.0,0.00829448]
[1609481619397,0.71264001,29232.0,29231.0,0.00829448]
[1609481622003,0.62724,29232.0,29231.0,0.00829448]
[1609481622900,0.71264001,29232.0,29231.0,0.00829448]
[1609481623121,0.62724,29232.0,29231.0,0.00829448]
[1609481625225,0.24851,29233.0,29231.0,0.00829448]
[1609481625424,0.362245,29232.0,29231.0,0.00829448]
[1609481625827,0.18931,29233.0,29231.0,0.00829448]
[1609481626025,0.362245,29232.0,29231.0,0.00829448]
[1609481626224,0.651615,29232.0,29231.0,0.00829448]
[1609481626423,0.73701501,29232.0,29231.0,0.00829448]
[1609481627132,1.68738695,29232.0,29231.0,0.00829448]
[1609481627329,0.73701501,29232.0,29231.0,0.00829448]
[1609481628229,1.38701501,29232.0,29231.0,0.00829448]
[1609481632098,2.18701501,29232.0,29231.0,0.00829448]
[1609481632529,1.38701501,29232.0,29231.0,0.00829448]
[1609481633434,0.73701501,29232.0,29231.0,0.00829448]
[1609481634333,1.58701501,29232.0,29231.0,0.00829448]
[1609481635136,2.18701501,29232.0,29231.0,0.00829448]
[1609481635536,1.58701501,29232.0,29231.0,0.00829448]
[1609481637037,2.58701501,29232.0,29231.0,0.00829448]
[1609481638038,1.58701501,29232.0,29231.0,0.00829448]
[1609481640061,2.13701501,29232.0,29231.0,0.00829448]
[1609481640465,1.58701501,29232.0,29231.0,0.00829448]
[1609481643074,0.58764501,29232.0,29231.0,0.00829448]
[1609481643473,0.502245,29232.0,29231.0,0.00829448]
[1609481644307,0.362245,29232.0,29231.0,0.00829448]
[1609481644510,0.32080302,29234.0,29231.0,0.00829448]
[1609481645053,0.4819,29235.0,29231.0,0.00829448]
[1609481645250,0.4819,29235.0,29232.0,0.072287]
[1609481645446,0.362245,29234.0,29231.0,0.00829448]
[1609481645844,0.362245,29234.0,29232.0,0.5126]
[1609481647987,0.362245,29234.0,29233.0,0.01080197]
[1609481648284,0.582245,29234.0,29233.0,0.01080197]
[1609481649087,0.90304802,29234.0,29233.0,0.01080197]
[1609481649686,0.582245,29234.0,29233.0,0.01080197]
[1609481652990,1.432245,29234.0,29233.0,0.01080197]
[1609481653228,0.90304802,29234.0,29233.0,0.01080197]
[1609481655631,1.65304802,29234.0,29233.0,0.01080197]
[1609481655939,4.14321802,29234.0,29233.0,0.01080197]
[1609481656140,5.09358996,29234.0,29233.0,0.01080197]
[1609481656328,3.84321802,29234.0,29233.0,0.01080197]
[1609481656633,3.87876974,29234.0,29233.0,0.01080197]
[1609481657285,4.87876974,29234.0,29233.0,0.01080197]
[1609481657981,4.32876974,29234.0,29233.0,0.01080197]
[1609481658584,4.29530162,29234.0,29233.0,0.01080197]
[1609481659781,4.84530162,29234.0,29233.0,0.01080197]
[1609481660471,4.32876974,29234.0,29233.0,0.01080197]
[1609481663007,4.29530162,29234.0,29233.0,0.01080197]
[1609481663210,2.19530162,29234.0,29233.0,0.01080197]
[1609481663908,4.19530162,29234.0,29233.0,0.01080197]
[1609481664207,4.29791162,29234.0,29233.0,0.00580197]
[1609481664709,2.33137974,29234.0,29233.0,0.00580197]
[1609481664908,2.93137974,29234.0,29233.0,0.00580197]
[1609481665309,2.89791162,29234.0,29233.0,0.00580197]
[1609481665808,3.44791162,29234.0,29233.0,0.00580197]
[1609481666110,2.89791162,29234.0,29233.0,0.00580197]
[1609481667411,2.93137974,29234.0,29233.0,0.00580197]
[1609481667811,4.18137974,29234.0,29233.0,0.00580197]
[1609481668441,3.18137974,29234.0,29233.0,0.00580197]
[1609481668641,1.89791162,29234.0,29233.0,0.00580197]
[1609481668843,2.89791162,29234.0,29233.0,0.00580197]
[1609481669945,2.80774162,29234.0,29233.0,0.00580197]
[1609481670142,1.68761714,29234.0,29233.0,0.00580197]
[1609481671042,1.6917831,29234.0,29233.0,0.00580197]
[1609481672343,1.72525122,29234.0,29233.0,0.00580197]
[1609481672647,1.72316762,29234.0,29233.0,0.00580197]
[1609481672846,3.57353956,29234.0,29233.0,0.00580197]
[1609481673048,4.60391667,29234.0,29233.0,0.00580197]
[1609481673770,4.60391667,29234.0,29233.0,0.00600197]
[1609481673771,6.25130667,29234.0,29233.0,0.00600197]
[1609481674212,6.25339052,29234.0,29233.0,0.00600197]
[1609481674908,6.46407338,29234.0,29233.0,0.00580197]
[1609481675351,6.46407338,29234.0,29233.0,0.00531197]
[1609481678986,6.53544571,29234.0,29233.0,0.00531197]
[1609481679390,0.32080302,29233.0,29232.0,0.0002]
[1609481679589,4.27406672,29233.0,29232.0,0.0002]
[1609481679787,4.30753484,29233.0,29232.0,0.0002]
[1609481680093,4.31377319,29233.0,29232.0,0.0002]
[1609481680290,6.06136307,29233.0,29232.0,0.0002]
[1609481681690,6.06552128,29233.0,29232.0,0.0002]
[1609481682092,5.08168122,29233.0,29232.0,0.0002]
[1609481682295,4.04506576,29233.0,29232.0,0.0002]
[1609481682598,3.46326902,29233.0,29232.0,0.0002]
[1609481682796,3.338025,29233.0,29232.0,0.0002]
[1609481682993,3.01722198,29233.0,29232.0,0.0002]
[1609481683194,3.01306377,29233.0,29232.0,0.0002]
[1609481683439,3.010985,29233.0,29232.0,0.0002]
[1609481683834,3.01306375,29233.0,29232.0,0.0002]
[1609481684538,3.010985,29233.0,29232.0,0.0002]
[1609481686634,3.33178802,29233.0,29232.0,0.0002]
[1609481687263,3.010985,29233.0,29232.0,0.0002]
[1609481688465,3.09638501,29233.0,29232.0,0.0002]
[1609481692722,3.09846412,29233.0,29232.0,0.0002]
[1609481694824,3.41926714,29233.0,29232.0,0.0002]
[1609481696629,3.42342705,29233.0,29232.0,0.0002]
[1609481697229,3.42134794,29233.0,29232.0,0.0002]
[1609481697934,3.41926815,29233.0,29232.0,0.0002]
[1609481698746,3.10262605,29233.0,29232.0,0.0002]
[1609481698945,3.10054593,29233.0,29232.0,0.0002]
[1609481700349,3.09846574,29233.0,29232.0,0.0002]
[1609481700549,3.10054708,29233.0,29232.0,0.0002]
[1609481702163,3.01514707,29233.0,29232.0,0.0002]
[1609481702356,2.81080707,29233.0,29232.0,0.0002]
[1609481702658,1.36640707,29233.0,29232.0,0.06713]
[1609481702857,0.36640707,29233.0,29232.0,0.06713]
[1609481703061,0.362245,29233.0,29232.0,0.06713]
[1609481703357,0.36432711,29233.0,29232.0,0.06713]
[1609481703757,0.362245,29233.0,29232.0,0.06713]
[1609481704174,0.362245,29233.0,29232.0,0.35713]
[1609481704383,0.48398168,29235.0,29232.0,1.39955]
[1609481704585,0.4819,29235.0,29233.0,0.1]
[1609481704781,0.4819,29235.0,29234.0,0.28]
[1609481704983,0.844145,29235.0,29234.0,0.28]
[1609481705452,0.83622666,29235.0,29234.0,0.28]
[1609481705653,0.47398166,29235.0,29234.0,0.472402]
[1609481705851,0.4719,29235.0,29234.0,0.472402]
[1609481706158,0.00208163,29236.0,29235.0,3.8310664]
[1609481706354,0.00208079,29238.0,29235.0,4.075]
[1609481706646,0.00208079,29238.0,29237.0,3.842988]
[1609481706854,0.00208057,29242.0,29237.0,3.842988]
[1609481707049,0.00208057,29242.0,29241.0,1.842344]
[1609481707252,0.00624171,29244.0,29241.0,1.942344]
[1609481707253,0.00624127,29244.0,29241.0,1.942344]
[1609481707456,0.296,29247.0,29243.0,1.342325]
[1609481707654,0.00623093,29250.0,29243.0,1.535175]
[1609481707848,0.00207698,29250.0,29244.0,0.1]
[1609481708153,0.362245,29249.0,29244.0,0.1]
[1609481708547,0.36432201,29249.0,29244.0,0.1]
[1609481708946,0.00207701,29249.0,29244.0,0.1]
[1609481709150,0.00623094,29250.0,29245.0,0.704703]
[1609481709344,0.00623094,29250.0,29245.0,0.7624]
[1609481709662,0.1148,29245.0,29244.0,0.975408]
[1609481709868,0.1148,29245.0,29244.0,1.165408]
[1609481710061,0.1148,29245.0,29244.0,0.482308]
[1609481710264,0.1148,29245.0,29244.0,0.382308]
[1609481710464,0.1148,29245.0,29244.0,0.482308]
[1609481710665,0.1148,29245.0,29244.0,0.382308]
[1609481711669,0.477045,29245.0,29243.0,1.19285]
[1609481711870,0.362245,29244.0,29243.0,1.0]
[1609481713473,0.362245,29244.0,29243.0,1.1]
[1609481713669,0.1148,29245.0,29243.0,1.0]
[1609481713872,0.1148,29245.0,29244.0,0.192316]
[1609481714065,0.1148,29245.0,29244.0,0.367316]
[1609481714270,0.1148,29245.0,29244.0,0.175]
[1609481714473,1.427045,29245.0,29244.0,0.175]
[1609481714676,0.477045,29245.0,29243.0,1.0]
[1609481714869,0.362245,29244.0,29243.0,1.0]
[1609481715171,0.362245,29244.0,29243.0,1.5124]
[1609481716185,0.1148,29245.0,29243.0,1.5124]
[1609481716986,0.1148,29245.0,29243.0,0.5124]
[1609481717588,0.1148,29245.0,29244.0,0.192316]
[1609481719291,0.1148,29245.0,29244.0,0.522316]
[1609481721984,3.877045,29245.0,29243.0,1.73316]
[1609481722287,0.312245,29244.0,29243.0,1.0]
[1609481722586,0.312245,29244.0,29235.0,1.0]
[1609481722817,0.512067,29244.0,29235.0,1.0]
[1609481723422,0.32080302,29243.0,29235.0,1.0]
[1609481723619,0.362245,29242.0,29235.0,1.0]
[1609481728564,0.362245,29243.0,29242.0,0.637755]
[1609481728762,0.687245,29243.0,29242.0,0.637755]
[1609481729468,0.7724,29245.0,29243.0,0.312755]
[1609481729664,0.61569712,29244.0,29243.0,0.312755]
[1609481729864,0.582229,29244.0,29243.0,0.312755]
[1609481730566,0.582229,29244.0,29243.0,0.55]
[1609481730567,0.362223,29244.0,29243.0,0.55]
[1609481730764,0.632223,29244.0,29243.0,0.55]
[1609481730967,1.632223,29244.0,29243.0,0.55]
[1609481731163,1.632223,29244.0,29243.0,0.3]
[1609481732694,1.632223,29244.0,29235.0,1.0]
[1609481732891,0.69650802,29243.0,29235.0,1.0]
[1609481733092,0.375705,29243.0,29235.0,1.0]
[1609481733293,0.51250001,29241.0,29235.0,1.0]
[1609481733694,0.362223,29240.0,29235.0,1.0]
[1609481736122,0.076851,29239.0,29235.0,1.0]
[1609481736430,0.362223,29236.0,29235.0,1.0]
[1609481737957,0.357223,29236.0,29235.0,1.0]
[1609481738673,1.30759494,29236.0,29235.0,1.0]
[1609481738866,1.60759494,29236.0,29235.0,1.0]
[1609481739259,1.96186608,29236.0,29235.0,1.0]
[1609481739465,1.96394294,29236.0,29235.0,1.0]
[1609481739669,2.96394294,29236.0,29232.0,0.0002]
[1609481739868,0.043854,29233.0,29232.0,0.0002]
[1609481740061,1.17344594,29233.0,29232.0,0.0002]
[1609481740266,1.20691406,29233.0,29232.0,0.0002]
[1609481740459,1.60191406,29233.0,29232.0,0.0002]
[1609481740765,2.60191406,29233.0,29232.0,0.0002]
[1609481741162,1.65154212,29233.0,29232.0,0.0002]
[1609481741361,2.60191406,29233.0,29232.0,0.0002]
[1609481741562,1.65154212,29233.0,29232.0,0.0002]
[1609481741764,1.618074,29233.0,29232.0,0.0002]
[1609481742064,1.65154212,29233.0,29232.0,0.0002]
[1609481742463,1.618074,29233.0,29232.0,0.0002]
[1609481743063,1.88554504,29233.0,29232.0,0.0002]
[1609481743602,1.87554504,29233.0,29232.0,0.0002]
[1609481749834,1.90901316,29233.0,29232.0,0.0002]
[1609481751354,1.99441317,29233.0,29232.0,0.0002]
[1609481757490,2.94478511,29233.0,29232.0,0.0002]
[1609481757691,1.99441317,29233.0,29232.0,0.0002]
[1609481758293,1.96094505,29233.0,29232.0,0.0002]
[1609481759013,1.99441317,29233.0,29232.0,0.0002]
[1609481759318,1.96094505,29233.0,29232.0,0.0002]
[1609481759514,1.99441317,29233.0,29232.0,0.0002]
[1609481760217,1.96094505,29233.0,29232.0,0.0002]
[1609481760817,1.99441317,29233.0,29232.0,0.0002]
[1609481761017,2.03009983,29233.0,29232.0,0.0002]